bitfinex/quotes_BTCUSD_20250206
["timestamp","ask_amount","ask_price","bid_price","bid_amount"]
[1738857374645,0.79463465,97105.0,97104.0,0.0003628]
[1738857374843,0.79463465,97105.0,97104.0,0.0053628]
[1738857375245,0.79463465,97105.0,97104.0,0.02460171]
[1738857375448,0.64016365,97105.0,97104.0,0.02460171]
[1738857375769,0.51466,97105.0,97104.0,0.01960171]
[1738857376016,0.51466,97105.0,97104.0,0.32407471]
[1738857376179,0.51466,97105.0,97104.0,0.32607471]
[1738857376390,0.51466,97105.0,97104.0,0.52154896]
[1738857376593,0.51466,97105.0,97104.0,0.5523147]
[1738857376768,0.51466,97105.0,97104.0,0.5503147]
[1738857376970,0.51466,97105.0,97104.0,0.5523147]
[1738857377178,0.51466,97105.0,97104.0,0.5573147]
[1738857377647,0.51466,97105.0,97104.0,0.5503147]
[1738857377850,0.52266,97105.0,97104.0,0.5513147]
[1738857377993,0.52566,97105.0,97104.0,0.5503147]
[1738857378330,0.52566,97105.0,97104.0,0.5533147]
[1738857378639,0.51766,97105.0,97104.0,0.5503147]
[1738857379063,0.52566,97105.0,97104.0,0.5513147]
[1738857379384,0.52566,97105.0,97104.0,0.50131005]
[1738857379815,0.52266,97105.0,97104.0,0.50131005]
[1738857380037,0.52666,97105.0,97104.0,0.50131005]
[1738857380235,0.52666,97105.0,97104.0,0.41851005]
[1738857380637,0.52266,97105.0,97104.0,0.41851005]
[1738857380792,0.52266,97105.0,97104.0,0.0013628]
[1738857381004,0.52566,97105.0,97104.0,0.0013628]
[1738857381209,0.51766,97105.0,97104.0,0.0003628]
[1738857381405,0.51466,97105.0,97104.0,0.0003628]
[1738857381646,0.51466,97105.0,97104.0,0.0013628]
[1738857381847,0.51866,97105.0,97104.0,0.0003628]
[1738857382280,0.51866,97105.0,97104.0,0.0093628]
[1738857382460,0.51866,97105.0,97104.0,0.11186645]
[1738857383076,0.51866,97105.0,97104.0,0.01958288]
[1738857383275,0.51466,97105.0,97104.0,0.12208653]
[1738857383477,0.51466,97105.0,97104.0,0.11808653]
[1738857383677,0.51466,97105.0,97104.0,0.12008653]
[1738857383883,0.51466,97105.0,97104.0,0.0073628]
[1738857384059,0.51466,97105.0,97104.0,0.0053628]
[1738857384576,0.51466,97105.0,97104.0,0.0003628]
[1738857384775,0.51466,97105.0,97104.0,0.01959358]
[1738857384981,0.51566,97105.0,97104.0,0.02759358]
[1738857385181,0.51466,97105.0,97104.0,0.17406658]
[1738857385647,0.51466,97105.0,97104.0,0.42657023]
[1738857386558,0.51466,97105.0,97104.0,0.42757023]
[1738857386756,0.51466,97105.0,97104.0,0.42857023]
[1738857386957,0.51466,97105.0,97104.0,0.42757023]
[1738857387159,0.51466,97105.0,97104.0,0.43657023]
[1738857387339,0.51566,97105.0,97104.0,0.43557023]
[1738857387677,0.27991746,97105.0,97104.0,0.53877023]
[1738857387887,0.08191895,97134.0,97133.0,0.304427]
[1738857388031,0.08191895,97146.0,97145.0,0.304408]
[1738857388232,0.0001068,97162.0,97157.0,0.304389]
[1738857388432,0.0001068,97162.0,97161.0,0.304382]
[1738857388665,0.08191895,97188.0,97167.0,0.304373]
[1738857388865,0.08191895,97188.0,97167.0,0.40687665]
[1738857389123,0.08191895,97188.0,97177.0,0.304357]
[1738857389332,0.08191895,97188.0,97177.0,0.25250365]
[1738857389531,0.08238258,97188.0,97187.0,0.154341]
[1738857389732,0.08238258,97188.0,97187.0,0.25684465]
[1738857389931,0.00046363,97188.0,97187.0,0.25684465]
[1738857390276,0.00046363,97188.0,97187.0,0.40684465]
[1738857390893,0.00046363,97188.0,97187.0,0.50994465]
[1738857391203,0.00046363,97188.0,97187.0,0.54688575]
[1738857391412,0.00046363,97188.0,97187.0,0.54888575]
[1738857391630,0.00046363,97188.0,97187.0,0.55588575]
[1738857391829,0.00046363,97188.0,97187.0,0.54588575]
[1738857392232,0.00046363,97188.0,97187.0,0.51918575]
[1738857392707,0.00046363,97188.0,97187.0,0.51018575]
[1738857392906,0.00346363,97188.0,97187.0,0.51018575]
[1738857393117,0.00346363,97188.0,97187.0,0.55988346]
[1738857393313,0.00346363,97188.0,97187.0,0.54988346]
[1738857393566,0.00246363,97188.0,97187.0,0.55088346]
[1738857393930,0.00546363,97188.0,97187.0,0.56088346]
[1738857394148,0.00346363,97188.0,97187.0,0.55988346]
[1738857394353,0.00046363,97188.0,97187.0,0.55988346]
[1738857394561,0.00146363,97188.0,97187.0,0.55088346]
[1738857394760,0.00346363,97188.0,97187.0,0.54988346]
[1738857395309,0.00346363,97188.0,97187.0,0.46678346]
[1738857396302,0.00546363,97188.0,97187.0,0.31778346]
[1738857396504,0.00246363,97188.0,97187.0,0.31778346]
[1738857396706,0.00246363,97188.0,97187.0,0.28720025]
[1738857396912,0.00546363,97188.0,97187.0,0.28720025]
[1738857397324,0.00246363,97188.0,97187.0,0.43720025]
[1738857397727,0.00546363,97188.0,97187.0,0.43720025]
[1738857400237,0.00546363,97188.0,97187.0,0.46759293]
[1738857402326,0.00557043,97188.0,97187.0,0.46759293]
[1738857402444,0.00557043,97188.0,97187.0,0.42695915]
[1738857402651,0.00057043,97188.0,97187.0,0.42595915]
[1738857403058,0.00557043,97188.0,97187.0,0.42695915]
[1738857403461,0.00057043,97188.0,97187.0,0.42595915]
[1738857403714,0.00257043,97188.0,97187.0,0.40784465]
[1738857404016,0.00657043,97188.0,97187.0,0.40784465]
[1738857405770,0.00657043,97188.0,97187.0,0.42685284]
[1738857406074,0.00657043,97188.0,97187.0,0.02000819]
[1738857406933,0.00457043,97188.0,97182.0,0.15]
[1738857407135,0.00457043,97188.0,97178.0,0.15]
[1738857407136,0.00057043,97188.0,97160.0,0.19237189]
[1738857407334,0.00157043,97188.0,97187.0,0.009]
[1738857407649,0.00157043,97188.0,97187.0,0.006]
[1738857408080,0.00157043,97188.0,97187.0,0.156]
[1738857408286,0.00157043,97188.0,97187.0,0.25953246]
[1738857408579,0.00157043,97188.0,97187.0,0.25850365]
[1738857409199,0.00057043,97188.0,97187.0,0.25250365]
[1738857409414,0.00257043,97188.0,97187.0,0.25250365]
[1738857409614,0.00357043,97188.0,97187.0,0.25250365]
[1738857409820,0.00057043,97188.0,97187.0,0.25250365]
[1738857410025,0.00157043,97188.0,97187.0,0.25650365]
[1738857410403,0.00157043,97188.0,97187.0,0.27553559]
[1738857410746,0.00057043,97188.0,97187.0,0.27153559]
[1738857410860,0.00357043,97188.0,97187.0,0.27153559]
[1738857412115,0.00057043,97188.0,97187.0,0.27153559]
[1738857412322,4.3e-07,97188.0,97187.0,0.27153559]
[1738857412666,1.3e-07,97191.0,97190.0,0.304336]
[1738857412802,0.00013358,97191.0,97190.0,0.40683965]
[1738857414217,0.00013358,97191.0,97190.0,0.42587159]
[1738857414395,0.00913358,97191.0,97190.0,0.42687159]
[1738857415965,0.01313358,97191.0,97190.0,0.42687159]
[1738857417934,0.01313358,97191.0,97190.0,0.32436794]
[1738857419534,0.01313358,97191.0,97190.0,0.305336]
[1738857419666,0.01896694,97191.0,97190.0,0.155336]
[1738857419873,0.16746858,97191.0,97190.0,0.001]
[1738857420074,0.01313358,97191.0,97190.0,0.001]
[1738857420504,0.00913358,97191.0,97190.0,0.001]
[1738857420858,0.154364,97173.0,97166.0,0.154374]
[1738857421012,0.154364,97173.0,97162.0,0.00022428]
[1738857421191,0.15436,97175.0,97166.0,0.154373]
[1738857421411,0.154364,97173.0,97163.0,0.205839]
[1738857421610,0.205826,97170.0,97162.0,0.00022428]
[1738857421837,0.1282,97178.0,97162.0,0.00022428]
[1738857422011,0.13832365,97177.0,97162.0,0.00022428]
[1738857422213,0.154379,97164.0,97162.0,0.00022428]
[1738857422441,0.205836,97165.0,97162.0,0.00022428]
[1738857422638,0.22644673,97176.0,97162.0,0.00022428]
[1738857422639,0.154376,97166.0,97163.0,0.001]
[1738857423028,0.22644673,97176.0,97163.0,0.001]
[1738857423029,0.154377,97165.0,97163.0,0.001]
[1738857423440,0.155378,97164.0,97162.0,0.00622428]
[1738857423871,0.154378,97164.0,97162.0,0.00022428]
[1738857424215,0.154378,97164.0,97163.0,0.006]
[1738857425251,0.154378,97164.0,97163.0,0.007]
[1738857425452,0.002,97165.0,97163.0,0.006]
[1738857425864,0.155378,97164.0,97163.0,0.007]
[1738857426039,0.001,97164.0,97163.0,0.001]
[1738857426445,0.002,97164.0,97163.0,0.001]
[1738857426648,0.156378,97164.0,97163.0,0.001]
[1738857426852,0.2071359,97164.0,97163.0,0.001]
[1738857427051,0.155378,97164.0,97163.0,0.006]
[1738857427299,0.156378,97164.0,97163.0,0.006]
[1738857427724,0.155378,97164.0,97163.0,0.001]
[1738857427967,0.155378,97164.0,97163.0,0.005]
[1738857428163,0.27988165,97164.0,97163.0,0.004]
[1738857428616,0.023,97163.0,97162.0,0.00022428]
[1738857428815,0.17350365,97163.0,97162.0,0.00022428]
[1738857429844,0.17350365,97163.0,97123.0,0.154442]
[1738857429845,0.154428,97133.0,97123.0,0.154442]
[1738857430064,0.154431,97131.0,97123.0,0.154442]
[1738857430258,0.023,97157.0,97126.0,0.15]
[1738857430259,0.023,97145.0,97126.0,0.15]
[1738857430487,0.023,97145.0,97118.0,0.10868]
[1738857430488,0.023,97141.0,97118.0,0.10868]
[1738857430643,0.205892,97139.0,97118.0,0.10868]
[1738857430842,0.10250365,97139.0,97119.0,0.15]
[1738857431044,0.10250365,97139.0,97132.0,0.154427]
[1738857431444,0.1237,97142.0,97138.0,0.154419]
[1738857431617,0.1237,97142.0,97141.0,0.154414]
[1738857431820,0.0464,97142.0,97141.0,0.154414]
[1738857432451,0.0464,97142.0,97139.0,0.205889]
[1738857432614,0.0464,97142.0,97126.0,0.001]
[1738857432796,0.154428,97133.0,97126.0,0.151]
[1738857433001,0.10250365,97141.0,97119.0,0.00046363]
[1738857433214,0.03799037,97140.0,97119.0,0.00046363]
[1738857433419,0.0474,97142.0,97138.0,0.20589]
[1738857433854,0.0474,97142.0,97134.0,0.205899]
[1738857434204,0.0474,97142.0,97138.0,0.154418]
[1738857434427,0.0474,97142.0,97141.0,0.003]
[1738857434579,0.200813,97142.0,97141.0,0.003]
[1738857435372,0.0474,97142.0,97141.0,0.003]
[1738857435735,0.201813,97142.0,97141.0,0.003]
[1738857436076,0.0474,97142.0,97141.0,0.154414]
[1738857436273,0.0464,97142.0,97141.0,0.154414]
[1738857436522,0.0464,97142.0,97120.0,0.15]
[1738857436735,0.0464,97142.0,97134.0,0.003]
[1738857436937,0.154424,97135.0,97134.0,0.003]
[1738857437232,0.0464,97142.0,97130.0,0.205909]
[1738857437431,0.0464,97142.0,97141.0,0.157414]
[1738857437852,0.0464,97142.0,97141.0,0.00322428]
[1738857437989,0.0474,97142.0,97141.0,0.15763828]
[1738857438750,0.0474,97142.0,97141.0,0.00322428]
[1738857439044,0.0474,97142.0,97141.0,0.00022428]
[1738857439664,0.201813,97142.0,97141.0,0.00022428]
[1738857440204,0.201813,97142.0,97141.0,0.00322428]
[1738857441440,0.0474,97142.0,97141.0,0.00322428]
[1738857441937,0.0474,97142.0,97141.0,0.15763828]
[1738857442597,0.001,97142.0,97141.0,0.15763828]
[1738857443342,0.155413,97142.0,97141.0,0.00322428]
[1738857443662,0.1709543,97142.0,97141.0,0.00322428]
[1738857444046,0.001,97142.0,97141.0,0.00322428]
[1738857444245,0.001,97142.0,97141.0,0.15763828]
[1738857444849,0.001,97142.0,97141.0,0.00322428]
[1738857445056,0.155413,97142.0,97141.0,0.00322428]
[1738857445278,0.001,97142.0,97141.0,0.00322428]
[1738857445482,0.155413,97142.0,97141.0,0.00322428]
[1738857445682,0.001,97142.0,97141.0,0.00322428]
[1738857446277,0.001,97142.0,97141.0,0.15763828]
[1738857446509,0.001,97142.0,97141.0,0.00322428]
[1738857446878,0.001,97142.0,97141.0,0.15763828]
[1738857447496,0.001,97142.0,97141.0,0.00322428]
[1738857447807,0.001,97142.0,97141.0,0.15763828]
[1738857448373,0.001,97142.0,97141.0,0.30763828]
[1738857449416,0.001,97142.0,97141.0,0.40714193]
[1738857449572,0.001,97142.0,97141.0,0.30763828]
[1738857449772,0.00022428,97162.0,97144.0,0.15]
[1738857449977,0.00022428,97162.0,97154.0,0.154393]
[1738857449978,0.1834031,97162.0,97154.0,0.154393]
[1738857450178,0.1834031,97162.0,97141.0,0.00022428]
[1738857450179,0.12550365,97161.0,97141.0,0.00022428]
[1738857450381,0.1042,97158.0,97141.0,0.00022428]
[1738857450586,0.12550365,97157.0,97141.0,0.00022428]
[1738857450768,0.154404,97148.0,97141.0,0.00022428]
[1738857450962,0.0290221,97162.0,97141.0,0.00022428]
[1738857450963,0.01044046,97162.0,97141.0,0.00022428]
[1738857451186,0.00022428,97162.0,97160.0,0.154384]
[1738857452304,0.00022428,97162.0,97160.0,0.158384]
[1738857452504,0.00022428,97162.0,97160.0,0.159384]
[1738857453024,0.00022428,97162.0,97160.0,0.005]
[1738857453655,0.00022428,97162.0,97160.0,0.159383]
[1738857453851,0.00022428,97162.0,97161.0,0.0500408]
[1738857454647,0.00022428,97162.0,97161.0,0.01924646]
[1738857455088,0.00122428,97162.0,97161.0,0.01924646]
[1738857455711,0.00022428,97162.0,97161.0,0.00962165]
[1738857455938,0.00022428,97162.0,97161.0,0.01362165]
[1738857456148,0.00122428,97162.0,97161.0,0.17262165]
[1738857456279,0.00122428,97162.0,97161.0,0.16362165]
[1738857456482,0.00022428,97162.0,97161.0,0.29267858]
[1738857456682,0.08191895,97188.0,97187.0,0.154341]
[1738857456882,0.08191895,97188.0,97162.0,0.205841]
[1738857457084,0.154357,97178.0,97163.0,0.10250365]
[1738857457307,0.02300013,97191.0,97162.0,0.15]
[1738857457658,0.154343,97187.0,97175.0,0.304359]
[1738857457875,0.10250365,97190.0,97175.0,0.304359]
[1738857458076,0.10250365,97190.0,97177.0,0.154356]
[1738857458325,0.00013912,97191.0,97176.0,0.01921135]
[1738857458591,0.00013912,97191.0,97185.0,0.154343]
[1738857459101,0.154341,97188.0,97177.0,0.15]
[1738857459299,0.00013912,97191.0,97186.0,0.01921135]
[1738857459505,0.10264277,97191.0,97186.0,0.01921135]
[1738857459729,0.00013912,97191.0,97186.0,0.01921135]
[1738857460487,0.154339,97189.0,97187.0,0.0499312]
[1738857461498,0.0001068,97190.0,97187.0,0.0499312]
[1738857461675,0.001,97189.0,97188.0,0.01921135]
[1738857461868,0.155338,97189.0,97188.0,0.01921135]
[1738857462512,0.0001068,97190.0,97188.0,0.01921135]
[1738857462741,0.1544438,97190.0,97188.0,0.01921135]
[1738857462895,0.001,97189.0,97188.0,0.02821135]
[1738857463876,0.001,97189.0,97188.0,0.43608395]
[1738857464103,0.0001068,97190.0,97189.0,0.15]
[1738857464284,0.0011068,97190.0,97189.0,0.15]
[1738857464687,0.0001068,97190.0,97189.0,0.15]
[1738857465096,0.0001068,97190.0,97188.0,0.18554935]
[1738857465297,0.0001068,97190.0,97188.0,0.17354935]
[1738857465563,0.0001068,97190.0,97189.0,0.0589312]
[1738857465767,0.0011068,97190.0,97189.0,0.0619312]
[1738857465965,0.0011068,97190.0,97189.0,0.46080173]
[1738857465966,0.0001068,97190.0,97189.0,0.46080173]
[1738857466127,0.0001068,97190.0,97189.0,0.45677285]
[1738857466515,0.0001068,97190.0,97189.0,0.426053]
[1738857467381,0.0001068,97190.0,97189.0,0.48224165]
[1738857467581,8e-07,97206.0,97205.0,0.154313]
[1738857467739,0.0001067,97235.0,97211.0,0.01]
[1738857468088,0.00024579,97235.0,97234.0,0.304267]
[1738857468310,0.00024579,97235.0,97234.0,0.40677065]
[1738857469289,0.00024579,97235.0,97234.0,0.40777065]
[1738857469486,0.00124579,97235.0,97234.0,0.40677065]
[1738857469788,0.00124579,97235.0,97234.0,0.40777065]
[1738857471058,0.00024579,97235.0,97234.0,0.40677065]
[1738857472006,0.00024579,97235.0,97234.0,0.48887065]
[1738857472612,0.00024579,97235.0,97234.0,0.40877065]
[1738857472845,0.00424579,97235.0,97234.0,0.40677065]
[1738857474046,0.00024579,97235.0,97234.0,0.40677065]
[1738857474432,0.00424579,97235.0,97234.0,0.40777065]
[1738857474608,0.00424579,97235.0,97234.0,0.40677065]
[1738857474813,0.00024579,97235.0,97234.0,0.40677065]
[1738857475013,0.00024579,97235.0,97234.0,0.40777065]
[1738857475258,0.00424579,97235.0,97234.0,0.40677065]
[1738857475418,0.00424579,97235.0,97234.0,0.40777065]
[1738857475860,0.00024579,97235.0,97234.0,0.40677065]
[1738857476265,0.00324579,97235.0,97234.0,0.40677065]
[1738857477316,0.00024579,97235.0,97234.0,0.40677065]
[1738857477684,0.00424579,97235.0,97234.0,0.40677065]
[1738857478360,0.00424579,97235.0,97234.0,0.40777065]
[1738857480538,7.9e-07,97235.0,97234.0,0.41777065]
[1738857481243,0.0001067,97260.0,97259.0,0.304227]
[1738857481575,0.0001067,97260.0,97259.0,0.40673065]
[1738857481985,0.0001067,97260.0,97220.0,0.850477]
[1738857482193,0.0001067,97260.0,97255.0,0.154232]
[1738857482527,0.0001067,97260.0,97248.0,0.205658]
[1738857482528,0.0001067,97260.0,97251.0,0.355653]
[1738857482744,0.154243,97249.0,97240.0,0.34661503]
[1738857482949,0.047,97250.0,97241.0,0.154255]
[1738857483186,0.047,97250.0,97230.0,0.19236003]
[1738857483397,0.047,97250.0,97249.0,0.154243]
[1738857483601,0.047,97250.0,97249.0,0.304243]
[1738857484137,0.047,97250.0,97249.0,0.15]
[1738857484784,0.047,97250.0,97249.0,0.154]
[1738857484988,0.047,97250.0,97249.0,0.308243]
[1738857485501,0.047,97250.0,97249.0,0.162]
[1738857485841,0.047,97250.0,97249.0,0.316243]
[1738857486249,0.047,97250.0,97249.0,0.162]
[1738857486460,0.047,97250.0,97249.0,0.012]
[1738857486591,0.0877959,97250.0,97249.0,0.012]
[1738857487212,0.0471067,97250.0,97249.0,0.012]
[1738857488773,0.05353645,97250.0,97249.0,0.012]
[1738857489790,0.20777745,97250.0,97249.0,0.012]
[1738857490524,0.3332811,97250.0,97249.0,0.012]
[1738857490730,0.4141811,97250.0,97249.0,0.012]
[1738857490926,0.51602599,97250.0,97249.0,0.012]
[1738857491451,0.42381112,97250.0,97249.0,0.008]
[1738857491657,0.023,97249.0,97234.0,0.00022407]
[1738857491908,0.154265,97235.0,97234.0,0.00022407]
[1738857492656,0.17098353,97235.0,97234.0,0.00022407]
[1738857492962,0.29648718,97235.0,97234.0,0.00022407]
[1738857493331,0.37838718,97235.0,97234.0,0.00722407]
[1738857493673,0.38861668,97235.0,97234.0,0.00722407]
[1738857493878,0.49112033,97235.0,97234.0,0.00722407]
[1738857494070,0.43811668,97235.0,97234.0,0.00722407]
[1738857494255,0.43811668,97235.0,97234.0,0.00222407]
[1738857494664,0.43811668,97235.0,97234.0,0.00922407]
[1738857494866,0.43811668,97235.0,97234.0,0.00222407]
[1738857495331,0.43811668,97235.0,97234.0,0.00622407]
[1738857495502,0.54062033,97235.0,97234.0,0.00622407]
[1738857496971,0.54062033,97235.0,97200.0,0.01]
[1738857496972,0.203784,97223.0,97200.0,0.01]
[1738857497103,0.32928765,97223.0,97200.0,0.01]
[1738857497805,0.33957643,97223.0,97200.0,0.215761]
[1738857498003,0.34600618,97223.0,97200.0,0.01]
[1738857498905,0.06621853,97223.0,97201.0,0.15]
[1738857499106,0.01671853,97223.0,97221.0,0.154287]
[1738857500367,0.01671853,97223.0,97219.0,0.20572]
[1738857500368,0.01671853,97223.0,97222.0,0.15442509]
[1738857500517,0.01671853,97223.0,97222.0,0.30442509]
[1738857500720,0.01671853,97223.0,97222.0,0.40992874]
[1738857500921,0.00642975,97223.0,97222.0,0.40992874]
[1738857501440,0.00642975,97223.0,97222.0,0.41991411]
[1738857501639,0.00642975,97223.0,97222.0,0.42391411]
[1738857501879,0.0001067,97235.0,97234.0,0.304267]
[1738857502087,0.0001067,97235.0,97234.0,0.40677065]
[1738857502297,0.0001067,97235.0,97234.0,0.15]
[1738857502594,0.0001067,97235.0,97234.0,0.304267]
[1738857503259,0.0001067,97235.0,97234.0,0.40677065]
[1738857503791,0.0001067,97235.0,97234.0,0.40977065]
[1738857504375,0.0001067,97235.0,97234.0,0.40677065]
[1738857504584,0.0011067,97235.0,97234.0,0.40677065]
[1738857504790,0.0011067,97235.0,97234.0,0.15]
[1738857505010,0.0011067,97235.0,97234.0,0.304267]
[1738857505759,0.0011067,97235.0,97234.0,0.305267]
[1738857505972,0.0001067,97235.0,97234.0,0.305267]
[1738857506309,0.0051067,97235.0,97234.0,0.305267]
[1738857506911,0.0001067,97235.0,97234.0,0.151]
[1738857507108,0.0001067,97235.0,97234.0,0.014]
[1738857507284,0.0001067,97235.0,97234.0,0.2717989]
[1738857507487,0.0001067,97235.0,97234.0,0.154267]
[1738857507669,0.0001067,97235.0,97234.0,0.163267]
[1738857507871,0.0001067,97235.0,97234.0,0.167267]
[1738857508065,0.0001067,97235.0,97234.0,0.158267]
[1738857508334,0.0001067,97235.0,97234.0,0.167267]
[1738857508695,0.0001067,97235.0,97234.0,0.004]
[1738857508891,0.0001067,97235.0,97234.0,0.167267]
[1738857509091,0.0001067,97235.0,97234.0,0.41977065]
[1738857509316,0.0001067,97235.0,97234.0,0.313267]
[1738857509522,0.0001067,97235.0,97234.0,0.163]
[1738857510151,0.0001067,97235.0,97234.0,0.009]
[1738857510379,0.154279,97227.0,97216.0,0.154294]
[1738857510646,0.154276,97229.0,97218.0,0.154291]
[1738857510826,0.16080116,97235.0,97234.0,0.009]
[1738857511029,0.16080116,97235.0,97234.0,0.003]
[1738857511462,0.00653616,97235.0,97234.0,0.012]
[1738857511640,0.04933683,97235.0,97234.0,0.00322407]
[1738857511974,0.00653616,97235.0,97234.0,0.00322407]
[1738857512149,0.02968481,97235.0,97234.0,0.00322407]
[1738857512351,0.02968481,97235.0,97234.0,0.00022407]
[1738857512911,0.02968481,97235.0,97234.0,0.15449107]
[1738857513113,0.02968481,97235.0,97234.0,0.00022407]
[1738857513520,0.02968481,97235.0,97234.0,0.00322407]
[1738857513722,0.02968481,97235.0,97234.0,0.01222407]
[1738857513934,0.02968481,97235.0,97234.0,0.15322407]
[1738857514128,0.02968481,97235.0,97234.0,0.25375609]
[1738857514328,0.02968481,97235.0,97234.0,0.26472772]
[1738857514601,0.02968481,97235.0,97234.0,0.25572772]
[1738857514965,0.02968481,97235.0,97234.0,0.26472772]
[1738857515368,0.02968481,97235.0,97234.0,0.25572772]
[1738857515591,0.0001067,97235.0,97234.0,0.25572772]
[1738857516009,0.0001067,97235.0,97234.0,0.25272772]
[1738857516234,0.0001067,97235.0,97234.0,0.25572772]
[1738857516424,0.0001067,97235.0,97234.0,0.15322407]
[1738857516582,0.0001067,97235.0,97234.0,0.15022407]
[1738857516785,0.0001067,97235.0,97234.0,0.15922407]
[1738857517156,0.0001067,97235.0,97234.0,0.16422407]
[1738857517535,0.0001067,97235.0,97234.0,0.15922407]
[1738857517835,0.0001067,97235.0,97234.0,0.15022407]
[1738857518042,0.0001067,97235.0,97234.0,0.15422407]
[1738857518397,0.0001067,97235.0,97234.0,0.26675602]
[1738857518611,0.0001067,97235.0,97234.0,0.26572772]
[1738857519221,0.0001067,97235.0,97234.0,0.26172772]
[1738857519694,0.0001067,97235.0,97234.0,0.26590261]
[1738857519940,0.0001067,97235.0,97234.0,0.34800261]
[1738857520268,0.0001067,97235.0,97234.0,0.39270261]
[1738857520473,0.0001067,97235.0,97234.0,0.38770261]
[1738857520815,0.0001067,97235.0,97234.0,0.41825898]
[1738857521016,0.0001067,97235.0,97234.0,0.41425898]
[1738857521220,0.0041067,97235.0,97234.0,0.41525898]
[1738857521424,0.0041067,97235.0,97234.0,0.56952598]
[1738857521631,0.0001067,97260.0,97243.0,0.01]
[1738857521838,0.0001067,97260.0,97234.0,0.73725898]
[1738857521839,0.0001067,97260.0,97259.0,0.385127]
[1738857522154,4e-07,97261.0,97260.0,0.314225]
[1738857522289,0.0142074,97277.0,97276.0,0.3042]
[1738857522492,0.0142074,97277.0,97276.0,0.40670365]
[1738857523211,0.01434647,97277.0,97276.0,0.40670365]
[1738857523594,0.01434647,97277.0,97276.0,0.48260365]
[1738857523792,0.01434647,97277.0,97276.0,0.49160365]
[1738857524055,0.01434647,97277.0,97276.0,0.52155]
[1738857524256,0.01434647,97277.0,97276.0,0.49494873]
[1738857524412,0.01434647,97277.0,97276.0,0.49394873]
[1738857524623,0.01734647,97277.0,97276.0,0.41704873]
[1738857525027,0.01734647,97277.0,97276.0,0.41804873]
[1738857525695,0.01734647,97277.0,97276.0,0.40770365]
[1738857525855,0.01434647,97277.0,97276.0,0.40770365]
[1738857526250,0.01534647,97277.0,97276.0,0.40670365]
[1738857526709,0.01434647,97277.0,97276.0,0.40770365]
[1738857526851,0.01434647,97277.0,97276.0,0.40670365]
[1738857527221,0.01434647,97277.0,97276.0,0.40770365]
[1738857527630,0.01534647,97277.0,97276.0,0.40670365]
[1738857527911,0.01534647,97277.0,97276.0,0.40770365]
[1738857528978,0.01434647,97277.0,97276.0,0.40770365]
[1738857529796,0.01734647,97277.0,97276.0,0.40770365]
[1738857530625,1.7e-07,97278.0,97277.0,0.15]
[1738857530877,0.000124,97278.0,97277.0,0.3307313]
[1738857531079,7e-07,97283.0,97278.0,0.01]
[1738857531312,7e-07,97288.0,97287.0,0.15]
[1738857531553,7e-07,97288.0,97287.0,0.2535312]
[1738857531796,7e-07,97288.0,97287.0,0.25250365]
[1738857533348,0.0020007,97288.0,97287.0,0.25250365]
[1738857533546,0.0020007,97288.0,97287.0,0.25350365]
[1738857533705,7e-07,97288.0,97287.0,0.25250365]
[1738857533906,0.0020007,97288.0,97287.0,0.2737953]
[1738857534111,0.08157443,97313.0,97312.0,0.304143]
[1738857534323,0.08203772,97313.0,97312.0,0.304143]
[1738857534525,0.00015539,97313.0,97312.0,0.304143]
[1738857535943,0.00015539,97313.0,97312.0,0.40664665]
[1738857536342,0.00015539,97313.0,97312.0,0.42064665]
[1738857536542,0.00015539,97313.0,97312.0,0.318143]
[1738857536719,0.00015539,97313.0,97312.0,0.159]
[1738857537321,0.1306,97312.0,97311.0,0.154144]
[1738857538050,0.0479,97312.0,97311.0,0.154144]
[1738857538489,0.0479,97312.0,97309.0,0.304146]
[1738857538654,0.0479,97312.0,97309.0,0.15]
[1738857538858,0.0479,97312.0,97311.0,0.009]
[1738857539198,0.0479,97312.0,97309.0,0.15]
[1738857539356,0.154146,97311.0,97309.0,0.15]
[1738857540111,0.0479,97312.0,97304.0,0.15]
[1738857540112,0.154149,97309.0,97304.0,0.15]
[1738857540313,0.202043,97312.0,97311.0,0.004]
[1738857541068,0.21221158,97312.0,97311.0,0.004]
[1738857541468,0.154146,97310.0,97309.0,0.009]
[1738857541899,0.36114965,97310.0,97309.0,0.004]
[1738857542275,0.36114965,97310.0,97304.0,0.009]
[1738857542276,0.154154,97305.0,97304.0,0.009]
[1738857542470,0.0815,97310.0,97309.0,0.154148]
[1738857542734,0.0479,97312.0,97311.0,0.154144]
[1738857542876,0.04780862,97312.0,97311.0,0.154144]
[1738857543501,0.04780862,97312.0,97311.0,0.304144]
[1738857543696,0.0795,97335.0,97312.0,0.304143]
[1738857543929,0.0795,97335.0,97312.0,0.40664665]
[1738857544362,0.0795,97344.0,97312.0,0.40664665]
[1738857544769,0.02081773,97337.0,97312.0,0.40664665]
[1738857545174,0.08191895,97336.0,97312.0,0.40664665]
[1738857545708,0.08191895,97336.0,97312.0,0.40764665]
[1738857546390,0.205479,97334.0,97312.0,0.40764665]
[1738857546598,0.01034675,97329.0,97312.0,0.40764665]
[1738857547153,0.08191895,97336.0,97312.0,0.40764665]
[1738857548281,0.07218104,97336.0,97335.0,0.154106]
[1738857548493,0.00013896,97336.0,97335.0,0.154106]
[1738857548735,0.00013896,97336.0,97335.0,0.40660965]
[1738857549558,0.00013896,97336.0,97335.0,0.40960965]
[1738857549764,0.00013896,97336.0,97335.0,0.41560965]
[1738857550047,0.00013896,97336.0,97335.0,0.40960965]
[1738857551061,0.00013896,97336.0,97335.0,0.40660965]
[1738857551293,0.00013896,97336.0,97335.0,0.41160965]
[1738857551486,0.00013896,97336.0,97335.0,0.42060965]
[1738857551696,0.00013896,97336.0,97335.0,0.41160965]
[1738857551876,0.00013896,97336.0,97335.0,0.40660965]
[1738857552079,0.00013896,97336.0,97335.0,0.40760965]
[1738857553346,0.00013896,97336.0,97335.0,0.40660965]
[1738857554631,0.00013896,97336.0,97335.0,0.40760965]
[1738857555038,0.00013896,97336.0,97335.0,0.40660965]
[1738857555503,0.00013896,97336.0,97335.0,0.40760965]
[1738857555779,0.00013896,97336.0,97335.0,0.40660965]
[1738857556136,0.00013896,97336.0,97335.0,0.40760965]
[1738857556344,0.00013896,97336.0,97335.0,0.15]
[1738857557859,0.00013896,97336.0,97335.0,0.151]
[1738857558054,0.00013896,97336.0,97335.0,0.15]